bitfinex/quotes_ETHUSD_20260207
["timestamp","ask_amount","ask_price","bid_price","bid_amount"]
[1770448457201,0.33746943,2021.3,2020.6,1.23725626]
[1770448457423,0.33746943,2021.3,2020.7,3.55787828]
[1770448457791,14.8204773,2021.3,2019.9,0.05588493]
[1770448458014,3.55109749,2021.3,2020.2,0.05588493]
[1770448458333,3.55109749,2021.3,2020.3,1.23740163]
[1770448458493,1.57431865,2021.3,2020.3,1.23740185]
[1770448458688,1.57431865,2021.3,2020.3,1.2374014]
[1770448458897,1.57431865,2021.3,2020.2,1.29338158]
[1770448459109,0.33746943,2021.3,2020.6,0.05588493]
[1770448459324,0.33746943,2021.3,2020.5,1.23727658]
[1770448459618,0.33746943,2021.3,2020.1,0.001]
[1770448459955,1.23870996,2021.5,2020.6,1.29314043]
[1770448460094,4.94515636,2022.2,2020.6,1.29314043]
[1770448460095,1.57798881,2022.4,2021.2,0.05588493]
[1770448460404,0.00392,2022.5,2021.8,0.05588493]
[1770448460593,0.00392,2022.5,2021.5,0.05588493]
[1770448460594,1.23804441,2022.6,2021.5,0.05588493]
[1770448460796,0.002,2022.6,2021.8,0.05588493]
[1770448461127,1.23804016,2022.6,2021.9,0.05588493]
[1770448461430,1.23804016,2022.6,2021.3,0.05588493]
[1770448461431,0.002,2022.6,2021.3,5.00303855]
[1770448461593,0.002,2022.6,2021.6,0.05588493]
[1770448461917,13.24615865,2022.5,2021.4,0.97990079]
[1770448462134,13.24815865,2022.6,2021.5,0.05588493]
[1770448462625,13.24815865,2022.6,2021.2,0.05588493]
[1770448462820,13.24815865,2022.6,2021.3,0.05588493]
[1770448462821,13.24615865,2022.2,2021.3,0.05588493]
[1770448462989,18.20819199,2022.6,2021.6,0.05588493]
[1770448463324,1.23615506,2022.4,2021.6,0.05588493]
[1770448463528,1.23805251,2022.6,2021.6,1.29251332]
[1770448463902,0.002,2022.6,2021.7,0.62391164]
[1770448464241,1.23805588,2022.6,2021.9,0.05588493]
[1770448464394,1.23805588,2022.6,2021.7,0.62391164]
[1770448464598,1.23805588,2022.6,2021.7,0.55430276]
[1770448465022,1.23805588,2022.6,2021.6,1.29251247]
[1770448465023,1.23805588,2022.6,2021.6,1.29250457]
[1770448465325,0.002,2022.6,2021.9,0.05588493]
[1770448466533,13.24615865,2022.5,2020.6,4.79596932]
[1770448466718,0.002,2022.6,2021.5,0.05588493]
[1770448466927,0.002,2022.6,2021.9,1.29233721]
[1770448467128,0.002,2022.6,2021.9,1.29234392]
[1770448467362,0.002,2022.6,2021.9,0.05588493]
[1770448468228,0.002,2022.6,2020.2,13.30204358]
[1770448468448,0.002,2022.6,2021.5,0.05588493]
[1770448468845,0.002,2022.6,2021.5,0.55617415]
[1770448469040,0.002,2022.6,2021.8,0.05588493]
[1770448469425,0.002,2022.6,2021.5,1.29257789]
[1770448469625,0.002,2022.6,2021.5,0.05588493]
[1770448470053,0.002,2022.6,2021.5,1.29255798]
[1770448470354,0.002,2022.6,2021.8,0.05588493]
[1770448470555,0.002,2022.6,2021.8,0.67978021]
[1770448470753,0.002,2022.6,2021.8,0.05588493]
[1770448470932,0.002,2022.6,2021.6,1.23664051]
[1770448471133,0.002,2022.6,2021.6,1.23663324]
[1770448471332,0.002,2022.6,2021.8,0.05588493]
[1770448471658,0.002,2022.6,2021.5,1.29258369]
[1770448471849,0.002,2022.6,2021.5,0.05588493]
[1770448472155,0.002,2022.6,2021.5,1.29258914]
[1770448472324,0.002,2022.6,2021.5,0.05588493]
[1770448472530,0.002,2022.6,2021.7,0.001]
[1770448473529,0.002,2022.6,2021.8,0.05588493]
[1770448473733,0.002,2022.6,2021.9,0.05588493]
[1770448473934,0.002,2022.6,2021.9,0.00588493]
[1770448474334,1.18868917,2022.8,2021.9,0.00588493]
[1770448474530,1.18868917,2022.8,2021.5,1.29254553]
[1770448474531,1.18868917,2022.8,2022.0,0.05588493]
[1770448475158,1.18868917,2022.8,2021.5,1.23678247]
[1770448475476,1.23603282,2022.6,2021.7,0.05588493]
[1770448475687,6.19606616,2022.6,2021.1,0.05588493]
[1770448475830,1.23603282,2022.6,2021.8,0.05588493]
[1770448476031,1.23599757,2022.7,2021.8,0.05588493]
[1770448476262,1.23599757,2022.7,2021.9,0.01878051]
[1770448476455,1.23599757,2022.7,2021.6,0.01878051]
[1770448476643,1.23599757,2022.7,2021.8,0.05588493]
[1770448477147,5.28019115,2023.4,2021.5,0.05588493]
[1770448477148,1.23560519,2023.3,2021.9,0.01877772]
[1770448477470,1.23560519,2023.3,2022.3,0.05588493]
[1770448477638,1.23560519,2023.3,2022.1,1.23627816]
[1770448477639,1.23560519,2023.3,2022.0,0.05588493]
[1770448477845,1.23560519,2023.3,2022.1,0.05588493]
[1770448478052,7.63181064,2023.2,2021.7,1.23657501]
[1770448478240,5.14304368,2023.1,2021.9,0.05588493]
[1770448478445,2.48876696,2023.2,2022.2,0.05588493]
[1770448478641,1.23560519,2023.3,2022.2,0.05588493]
[1770448478846,1.23560519,2023.3,2021.9,1.29234067]
[1770448479075,1.23560519,2023.3,2022.2,0.05588493]
[1770448479268,1.23560519,2023.3,2022.0,1.23635695]
[1770448479439,1.23560519,2023.3,2021.9,0.05588493]
[1770448479635,1.23560519,2023.3,2021.2,4.94749794]
[1770448479636,5.24544368,2022.9,2021.2,4.94749794]
[1770448479840,5.86358257,2023.2,2021.9,1.23645479]
[1770448479841,0.65158257,2023.2,2021.9,1.23645479]
[1770448480037,0.1024,2023.1,2021.9,1.23645479]
[1770448480237,0.1024,2023.1,2021.8,1.2364914]
[1770448480551,0.1024,2023.1,2021.8,1.29236634]
[1770448480752,0.1024,2023.1,2021.7,4.94625007]
[1770448480753,0.1024,2023.1,2021.5,0.05588493]
[1770448480940,0.1024,2023.1,2021.6,1.23661258]
[1770448481140,5.24544368,2023.1,2021.6,1.23661326]
[1770448481340,0.65158257,2023.2,2022.2,0.05588493]
[1770448481541,1.23572734,2023.1,2021.6,1.23664241]
[1770448481840,2.52020632,2023.0,2021.5,1.29253411]
[1770448482046,2.52020632,2023.0,2021.6,0.05588493]
[1770448482243,18.37184393,2022.8,2021.2,1.29274369]
[1770448482557,5.14304368,2022.7,2021.2,0.05588493]
[1770448482755,0.1024,2022.9,2021.7,1.2365816]
[1770448482946,5.63127705,2022.9,2021.5,1.29258136]
[1770448483147,5.63127705,2022.9,2021.5,0.05588493]
[1770448483369,5.63127705,2022.9,2021.5,1.29255957]
[1770448483559,1.23591061,2022.8,2021.5,0.05588493]
[1770448483864,1.23591061,2022.8,2020.9,0.05588493]
[1770448483865,13.22880025,2022.4,2020.9,0.05588493]
[1770448484064,5.24544368,2022.3,2020.7,0.05588493]
[1770448484273,5.24544368,2022.3,2020.2,0.05588493]
[1770448484274,15.07622464,2022.4,2021.1,0.05588493]
[1770448484483,0.1024,2022.7,2021.4,1.23676468]
[1770448484672,0.1024,2022.7,2021.4,1.29264961]
[1770448484867,13.22880025,2022.4,2021.1,0.05588493]
[1770448485071,5.14304368,2022.3,2020.6,1.2372479]
[1770448485398,13.22880025,2022.4,2020.6,4.94900711]
[1770448485399,5.14304368,2022.1,2020.6,4.94900711]
[1770448485555,6.37950443,2021.9,2020.7,0.5004892]
[1770448485885,6.37950443,2021.9,2020.2,0.05588493]
[1770448486091,6.37950443,2021.9,2021.7,0.001]
[1770448486285,6.37950443,2021.9,2020.7,1.23716278]
[1770448486286,1.23646075,2021.9,2020.7,1.23716278]
[1770448486493,1.23646075,2021.9,2020.9,0.05588493]
[1770448486664,1.23646075,2021.9,2021.5,0.001]
[1770448487078,1.23621618,2022.3,2021.5,0.001]
[1770448487271,2.86311512,2022.3,2021.5,0.001]
[1770448487590,2.86311512,2022.3,2020.6,5.00570449]
[1770448487591,1.23633846,2022.1,2020.6,1.23825626]
[1770448487788,1.23633846,2022.1,2020.8,0.05588493]
[1770448488165,4.94422108,2022.6,2021.4,0.05588493]
[1770448488860,23.31606501,2022.6,2020.8,5.17736887]
[1770448489063,7.59845346,2022.5,2020.9,0.46773689]
[1770448489591,1.23621618,2022.3,2020.9,1.23707259]
[1770448489763,1.23621618,2022.3,2020.8,1.29299222]
[1770448490798,18.37184393,2022.2,2020.8,1.23713208]
[1770448491406,18.37184393,2022.2,2020.6,0.001]
[1770448491582,1.23652191,2021.8,2020.6,0.001]
[1770448492490,5.14304368,2021.7,2020.3,1.14143998]
[1770448492806,5.14304368,2021.7,2020.2,1.23745549]
[1770448492989,5.24544368,2021.6,2020.2,1.2374943]
[1770448493189,5.24544368,2021.6,2017.9,1.54252467]
[1770448493190,5.14304368,2020.0,2015.5,17.72432465]
[1770448493391,5.14304368,2020.0,2015.1,0.05588493]
[1770448493392,0.25893135,2015.8,2015.1,0.05588493]
[1770448493606,0.25559533,2016.7,2016.3,6.902511]
[1770448493913,3.19359927,2016.8,2016.4,2.55987318]
[1770448494099,5.69584665,2017.2,2016.4,2.55987318]
[1770448494100,1.23639967,2016.7,2016.4,0.25598732]
[1770448494302,1.23639967,2016.9,2016.2,0.05588493]
[1770448494480,1.292,2017.4,2017.3,0.05588493]
[1770448494682,8.13692379,2018.3,2017.4,0.05588493]
[1770448494881,0.1024,2018.2,2017.8,0.05588493]
[1770448495107,13.22880025,2018.1,2017.0,0.05588493]
[1770448495409,13.22880025,2018.1,2017.1,0.05588493]
[1770448495410,13.22880025,2017.6,2017.1,0.05588493]
[1770448495709,1.23897313,2017.8,2016.5,0.05588493]
[1770448496077,18.37184393,2017.5,2016.2,0.05588493]
[1770448496511,18.37184393,2017.5,2016.3,0.05588493]
[1770448496707,13.22880025,2017.0,2015.8,0.05588493]
[1770448497005,1.32288003,2016.9,2015.5,1.29625302]
[1770448497205,0.1024,2017.0,2015.5,1.29625302]
[1770448497409,5.14304368,2017.2,2016.1,0.05588493]
[1770448497608,1.23928022,2017.3,2016.1,0.05588493]
[1770448497987,1.23928022,2017.3,2016.2,0.05588493]
[1770448498307,1.23928022,2017.3,2016.0,0.05588493]
[1770448498512,1.23928022,2017.3,2015.5,0.05588493]
[1770448498513,9.51298632,2017.2,2015.8,1.29608363]
[1770448498716,8.89335185,2017.2,2016.4,0.05588493]
[1770448498887,8.89335185,2017.2,2016.1,0.05588493]
[1770448499088,8.89335185,2017.2,2016.0,1.24004234]
[1770448499321,8.89335185,2017.2,2016.5,0.001]
[1770448499698,1.2394031,2017.1,2016.5,0.001]
[1770448499900,1.2394031,2017.1,2016.3,0.001]
[1770448500101,1.2394031,2017.1,2015.8,0.05588493]
[1770448500410,1.2394031,2017.1,2016.0,0.05588493]
[1770448500616,1.2394031,2017.1,2016.1,0.05588493]
[1770448500786,1.2394031,2017.1,2016.4,0.05588493]
[1770448500987,6.38146444,2018.8,2017.0,0.05588493]
[1770448501188,13.22880025,2018.2,2017.4,0.05588493]
[1770448501492,4.95371471,2018.7,2017.8,0.05588493]
[1770448501701,1.23878895,2018.1,2017.2,0.05588493]
[1770448502026,1.23878895,2018.1,2016.1,0.05588493]
[1770448502027,1.23878895,2018.1,2016.5,0.05588493]
[1770448502325,1.23878895,2018.1,2016.8,0.05588493]
[1770448502499,14.46753773,2018.2,2017.1,0.05588493]
[1770448502690,15.9142915,2018.2,2016.9,1.23948497]
[1770448502890,14.46753773,2018.2,2017.4,0.05588493]
[1770448503116,1.23873748,2018.2,2017.1,0.05588493]
[1770448503320,0.1024,2018.1,2016.6,1.23969154]
[1770448503523,13.22880025,2017.1,2015.9,0.05588493]
[1770448503713,1.23885034,2018.0,2016.6,0.05588493]
[1770448504038,10.09844506,2018.4,2016.6,0.05588493]
[1770448504039,13.22880025,2018.9,2016.7,11.49158394]
[1770448504331,5.14304368,2017.6,2016.1,1.24000895]
[1770448504533,0.05588493,2018.0,2015.5,5.12148394]
[1770448504534,0.12719784,2016.7,2015.5,5.12148394]
[1770448504692,0.12719784,2016.7,2015.6,6.12980121]
[1770448504892,0.12719784,2016.7,2015.8,4.96072268]
[1770448505201,0.12719784,2016.7,2015.9,0.05588493]
[1770448505402,13.22880025,2017.9,2016.6,1.2396647]
[1770448505727,13.22880025,2017.9,2015.8,1.2402024]
[1770448505728,1.23909595,2017.6,2015.8,1.2402024]
[1770448505895,1.23909595,2017.6,2015.9,0.62568969]
[1770448506097,1.23909595,2017.6,2016.0,0.05588493]
[1770448506591,1.23909595,2017.6,2015.9,0.68157462]
[1770448506798,18.18518407,2017.7,2016.2,0.05588493]
[1770448506799,14.46786986,2017.7,2016.2,0.05588493]
[1770448506995,14.46786986,2017.7,2015.9,6.73066223]
[1770448507221,0.05588493,2017.5,2016.0,0.67306622]
[1770448507419,0.05588493,2017.5,2015.7,1.24025817]
[1770448507420,0.05588493,2017.2,2015.7,1.24025817]
[1770448507623,13.28468518,2016.9,2015.7,1.24025152]
[1770448507827,1.23958746,2016.8,2015.7,1.24025152]
[1770448507998,14.468336,2016.9,2015.7,1.24025152]
[1770448508197,5.66995621,2016.7,2014.8,0.1286273]
[1770448508499,1.23953575,2016.9,2016.1,0.05588493]
[1770448508696,13.22880025,2017.1,2016.5,0.05588493]
[1770448508697,1.23949688,2017.0,2016.5,0.05588493]
[1770448508898,1.23949688,2017.0,2015.6,1.29618187]
[1770448509113,1.23949688,2017.0,2016.6,0.05588493]
[1770448509312,13.22880025,2017.4,2016.9,0.05588493]
[1770448509521,13.22880025,2017.4,2016.1,0.05588493]
[1770448509522,13.22880025,2017.0,2016.1,0.05588493]
[1770448509722,1.23977188,2016.5,2015.8,0.05588493]
[1770448509912,0.07765671,2015.6,2015.5,0.05588493]
[1770448510112,1.23977188,2016.5,2015.2,0.05588493]
[1770448510300,13.22880025,2016.2,2014.6,4.96353994]
[1770448510501,13.22880025,2016.2,2015.1,0.05588493]
[1770448511047,13.22880025,2016.2,2014.8,0.18451223]
[1770448511199,13.22880025,2016.2,2014.9,0.05588493]
[1770448511712,1.24001785,2016.1,2014.9,1.24075193]
[1770448511912,13.22880025,2015.6,2014.8,0.1286273]
[1770448512111,1.86002678,2016.1,2014.9,1.29663675]
[1770448512334,1.86002678,2016.1,2014.9,0.05588493]
[1770448512537,1.23978044,2016.5,2015.2,0.05588493]
[1770448512744,1.23978044,2016.5,2016.1,0.001]
[1770448513038,1.23978044,2016.5,2015.3,0.05588493]
[1770448513241,0.1024,2016.4,2014.9,1.24073781]
[1770448513403,1.23978044,2016.5,2014.9,1.24073781]
[1770448513604,0.1024,2016.3,2015.0,0.68912399]
[1770448513844,13.22880025,2016.1,2014.8,0.1286273]
[1770448514018,13.22880025,2016.1,2014.9,1.24074987]
[1770448514217,13.22880025,2015.7,2014.8,0.1286273]
[1770448514510,1.23989485,2016.3,2015.0,1.19097859]
[1770448514707,1.23989485,2016.3,2015.2,0.05588493]
[1770448514930,1.23989485,2016.3,2015.5,0.003]
[1770448515432,13.22880025,2015.6,2014.8,0.1286273]
[1770448515730,1.240387,2015.5,2014.8,0.1286273]
[1770448516135,1.24020078,2015.9,2014.8,1.3694117]
[1770448516333,1.24020078,2015.9,2014.8,0.1286273]
[1770448516544,13.22880025,2015.6,2014.8,0.1286273]
[1770448516747,13.22880025,2015.2,2013.9,4.96536469]
[1770448516910,13.22880025,2015.2,2014.3,1.24108699]
[1770448517109,13.22880025,2015.2,2014.2,1.24115804]
[1770448517316,13.22880025,2015.2,2013.7,4.96596232]
[1770448517631,18.75381951,2015.2,2014.1,1.24124206]
[1770448517836,14.4693722,2015.2,2013.9,0.05588493]
[1770448518342,19.99439146,2015.2,2013.4,5.02256376]
[1770448518546,14.4693722,2015.2,2013.4,5.02256376]
[1770448518746,14.4693722,2015.2,2013.4,4.96667883]
[1770448518946,14.4693722,2015.2,2013.5,0.67672089]
[1770448519145,14.46912571,2015.6,2013.5,0.62083596]
[1770448519451,5.52501926,2013.2,2011.0,0.00848257]
[1770448519663,13.22880025,2012.5,2011.3,11.28139673]
[1770448519819,4.96672295,2013.5,2012.0,6.05854473]
[1770448520008,1.24137246,2013.9,2012.4,6.0026598]
[1770448520208,1.24134445,2014.0,2012.6,2.741515]
[1770448520408,1.24134445,2014.0,2012.5,3.466]
[1770448520409,18.29452886,2014.8,2014.0,0.05588493]
[1770448520640,0.97569953,2014.7,2014.1,0.05588493]
[1770448520949,18.19212886,2014.8,2014.2,0.05588493]
[1770448521257,0.1024,2014.6,2013.9,0.05588493]
[1770448521534,2.49579661,2014.7,2014.2,0.05588493]
[1770448521733,2.49579661,2014.7,2013.9,0.05588493]
[1770448521734,4.96332861,2014.8,2014.3,0.05588493]
[1770448521934,4.96332861,2014.8,2013.7,0.05588493]
[1770448522238,0.98115437,2014.7,2013.5,0.05588493]
[1770448522409,0.98091435,2014.6,2013.2,0.05588493]
[1770448522608,4.96332861,2014.8,2012.5,0.05588493]
[1770448522609,0.98091435,2014.5,2013.6,0.05588493]
[1770448522804,0.98091435,2014.4,2013.3,0.05588493]
[1770448523040,9.42436897,2014.9,2013.3,0.05588493]
[1770448523041,4.96277915,2015.1,2014.2,0.05588493]
[1770448523239,1.24044854,2015.4,2014.5,0.05588493]
[1770448523451,0.98506395,2015.3,2014.5,0.05588493]
[1770448523644,1.24044854,2015.4,2014.5,0.05588493]
[1770448523822,1.24057165,2015.2,2014.5,0.05588493]
[1770448524029,3.66497845,2016.2,2015.1,0.05588493]
[1770448524339,0.98568743,2016.1,2015.2,0.05588493]
[1770448524549,1.24001698,2016.2,2015.3,0.00621597]
[1770448524719,0.98570754,2016.1,2015.1,0.05588493]
[1770448524923,13.22880025,2015.8,2013.5,6.0026598]
[1770448525145,0.98570754,2015.7,2014.8,0.05588493]
[1770448525322,1.64285735,2016.1,2014.9,0.05588493]
[1770448525522,0.98588257,2016.0,2015.0,0.05588493]
[1770448525722,1.24001698,2016.2,2015.0,0.05588493]
[1770448526044,0.05588493,2015.5,2013.4,6.0026598]
[1770448526222,13.22880025,2015.7,2012.9,0.05588493]
[1770448526223,0.98585245,2015.4,2014.4,1.24102205]
[1770448526428,0.05588493,2015.6,2014.3,1.2411245]
[1770448526629,0.9855314,2015.5,2014.4,0.47081245]
[1770448526923,0.9855314,2015.4,2014.5,3.467]
[1770448527126,1.80114228,2015.8,2014.4,3.93781245]
[1770448527451,1.74525735,2015.6,2014.1,8.43191121]
[1770448527652,1.21900699,2015.5,2014.0,0.001]
[1770448527951,1.24051009,2015.3,2014.1,1.24124919]
[1770448528163,1.24048313,2015.4,2014.1,1.24124919]
[1770448528650,1.24032546,2015.7,2014.1,1.24124919]
[1770448528949,2.32253014,2015.6,2014.2,0.62074218]
[1770448529131,0.98560436,2015.5,2014.2,0.62074218]
[1770448529329,0.98560436,2015.5,2014.0,0.001]
[1770448529330,13.22880025,2015.1,2014.0,0.001]
[1770448529530,0.2335703,2015.2,2014.0,0.001]
[1770448529734,13.51825548,2015.0,2014.0,0.001]
[1770448529934,2.22636072,2014.9,2013.3,3.40609806]
[1770448530130,2.22636072,2014.9,2013.1,4.96738008]
[1770448530131,0.98560436,2014.8,2013.1,4.96738008]
[1770448530331,1.24075636,2014.9,2013.2,0.62651308]
[1770448530332,0.98560436,2014.7,2013.2,0.62651308]
[1770448530536,0.9843227,2014.6,2013.2,0.62651308]
[1770448530763,0.9843227,2014.5,2013.2,0.62651308]
[1770448530966,13.22880025,2014.7,2013.3,3.468]
[1770448531174,0.98425961,2014.6,2013.4,3.468]
[1770448531333,0.98425961,2014.5,2013.5,0.3468]
[1770448531533,1.2406677,2015.1,2013.9,0.05588493]
[1770448531837,1.24075636,2014.9,2014.0,1.24131082]
[1770448532150,1.24075636,2014.9,2013.9,3.468]
[1770448532360,0.98519225,2014.8,2013.6,1.241522]
[1770448532561,0.98519225,2014.7,2013.7,1.24149435]
[1770448532761,2.0417539,2014.8,2013.7,1.24149404]
[1770448532967,2.0417539,2014.8,2013.1,0.05588493]
[1770448532968,0.9851121,2014.7,2013.8,1.24140804]
[1770448533154,1.24075636,2014.9,2013.7,1.24144168]
[1770448533514,0.98541787,2014.8,2013.7,3.468]
[1770448533650,0.98541787,2014.7,2013.7,0.96759592]
[1770448533993,1.24100273,2014.5,2012.5,5.02465752]
[1770448534287,0.98541787,2014.4,2013.4,1.24166841]
[1770448534506,14.31910232,2014.3,2013.2,1.24175341]
[1770448534803,2.62827522,2014.2,2013.2,1.24180016]
[1770448534958,2.62827522,2014.2,2013.0,4.96769752]
[1770448534959,13.33368445,2013.9,2013.0,1.24188801]
[1770448535167,0.98541787,2013.8,2013.0,4.96767875]
[1770448535504,13.33368445,2014.3,2012.5,3.52388493]
[1770448535710,0.98624763,2014.2,2012.5,4.96892684]
[1770448536012,0.98624763,2014.2,2012.7,1.24211258]
[1770448536013,2.22753568,2014.1,2012.7,1.24211258]
[1770448536204,18.29868122,2014.3,2012.7,1.24211258]
[1770448536205,1.24112594,2014.3,2012.8,0.62664479]
[1770448536362,1.24112594,2014.3,2012.9,0.05588493]
[1770448536703,0.98716671,2014.2,2012.9,0.05588493]
[1770448536902,0.98712125,2014.1,2012.8,0.62664479]
[1770448537201,1.24112594,2014.3,2012.8,0.62664479]
[1770448537202,0.98712125,2014.0,2012.8,0.62664479]
[1770448537486,0.98712125,2013.9,2012.3,6.0026598]
[1770448537659,0.98712125,2013.8,2012.6,1.24213672]
[1770448537863,1.24141481,2013.9,2012.5,4.96873937]
[1770448538058,0.98812395,2013.8,2012.5,4.96873937]
[1770448538265,2.88400982,2014.3,2012.7,0.05588493]
[1770448538580,0.98866063,2014.2,2012.8,3.469]
[1770448538781,0.98866063,2014.1,2013.0,0.05588493]
[1770448538977,1.24115247,2014.3,2012.8,3.469]
[1770448539172,0.98869468,2014.2,2012.7,0.05588493]
[1770448539362,0.98869468,2014.1,2012.5,4.96873937]
[1770448539571,1.24115247,2014.3,2012.5,4.96873937]
[1770448539572,0.98869468,2014.0,2012.6,4.09009754]
[1770448539895,1.24110539,2014.4,2013.0,1.24192747]
[1770448540061,21.28366518,2014.7,2013.2,0.05588493]
[1770448540062,0.98978071,2014.3,2013.2,0.05588493]
[1770448540267,0.002,2014.6,2013.5,0.05588493]
[1770448540501,0.002,2014.6,2013.6,3.469]
[1770448540710,0.002,2014.8,2014.2,0.05588493]
[1770448540885,1.24044312,2015.5,2014.2,0.05588493]
[1770448541402,0.98991559,2015.4,2014.2,0.05588493]
[1770448541566,1.24044312,2015.5,2013.9,0.05588493]
[1770448541567,0.98991559,2015.3,2013.9,0.05588493]
[1770448541766,0.98991559,2015.2,2013.9,0.05588493]
[1770448541991,0.98991559,2015.2,2014.0,1.24131026]
[1770448541992,0.98978618,2015.1,2014.0,1.24131026]
[1770448542188,2.42213324,2015.0,2014.0,1.24131026]
[1770448542391,1.64285735,2015.3,2013.2,6.19422801]
[1770448542392,6.32577151,2015.3,2013.2,6.13834308]
[1770448542696,1.64285735,2015.0,2013.3,0.05588493]
[1770448542884,2.63281501,2014.9,2013.0,0.05588493]
[1770448543085,13.33368445,2014.7,2013.6,1.2415403]
[1770448543268,0.98995766,2014.6,2013.8,1.24142323]
[1770448543595,0.05089637,2013.4,2013.2,1.2417651]
[1770448543768,3.41491913,2014.5,2012.9,0.001]
[1770448543769,1.64285735,2014.5,2012.9,0.001]
[1770448543968,1.24112594,2014.3,2012.9,0.001]
[1770448544165,0.99036404,2014.2,2012.9,0.001]
[1770448544371,0.99036404,2014.1,2012.9,0.62770745]
[1770448544596,0.99056055,2014.0,2012.9,0.52709856]
[1770448544899,0.88388511,2014.2,2012.9,0.52709856]
[1770448544900,0.99032962,2013.9,2012.9,0.52709856]
[1770448545196,0.9904331,2013.8,2012.7,1.24211031]
[1770448545364,0.9904331,2013.7,2012.7,1.24211031]
[1770448545569,0.99094919,2013.6,2012.7,1.24206709]
[1770448545804,0.99094919,2013.5,2012.7,1.24207759]
[1770448546105,1.24139819,2013.9,2012.7,1.24207759]
[1770448546306,0.99119456,2013.8,2012.8,0.68318425]
[1770448546516,0.99119456,2013.7,2012.8,0.68318425]
[1770448546798,1.24139819,2013.9,2012.8,0.68318425]
[1770448546997,1.64285735,2013.5,2012.6,1.24216564]
[1770448547187,0.99065388,2013.4,2012.2,1.2423953]
[1770448547394,0.99065388,2013.3,2012.6,1.24217343]
[1770448547704,2.31309562,2013.6,2012.3,4.96942698]
[1770448547912,13.33368445,2012.9,2011.8,0.87186732]
[1770448548218,1.64285735,2013.4,2011.8,1.24265771]
[1770448548399,1.24165999,2013.5,2011.8,7.43688572]
[1770448548579,0.98899535,2013.4,2012.3,0.05588493]
[1770448548778,1.24165999,2013.5,2011.8,7.43688572]
[1770448548984,1.24165999,2013.5,2011.8,7.38100079]
[1770448548985,0.98896765,2013.4,2011.8,7.38100079]
[1770448549195,1.24165999,2013.5,2011.8,7.38100079]
[1770448549399,0.98873805,2013.4,2011.8,7.38100079]
[1770448549593,1.24165999,2013.5,2011.8,1.24265771]
[1770448549798,0.98851142,2013.4,2011.9,0.62133307]
[1770448550106,1.64285735,2013.8,2012.1,0.05588493]
[1770448550427,19.65945596,2013.0,2011.4,0.05588493]
[1770448550710,6.55934181,2012.5,2011.0,4.98106558]
[1770448550919,0.2305703,2011.9,2011.0,0.00848257]
[1770448551085,6.32577151,2011.7,2010.6,0.1286273]
[1770448551287,6.32577151,2011.7,2010.4,4.9740998]
[1770448551288,6.32577151,2011.3,2010.0,0.2]
[1770448551590,19.65945596,2011.0,2009.7,1.24394506]
[1770448551780,13.33368445,2010.6,2008.8,0.05588493]
[1770448551980,1.33336845,2010.5,2009.1,0.05588493]
[1770448552228,13.33368445,2010.6,2008.9,1.24446214]
[1770448552514,13.33368445,2010.6,2008.5,0.05588493]
[1770448552515,13.33368445,2010.4,2008.2,6.13834308]
[1770448552678,6.42817151,2009.9,2008.4,0.25862473]
[1770448552883,13.33368445,2010.4,2008.4,0.25862473]
[1770448552884,6.32577151,2010.5,2008.9,0.05588493]
[1770448553180,1.24322442,2010.9,2009.5,0.05588493]
[1770448553379,4.97244917,2011.1,2009.8,0.05588493]
[1770448553612,0.2335703,2010.9,2009.3,0.05588493]
[1770448553800,4.97244917,2011.1,2009.9,0.05588493]
[1770448554000,1.24310079,2011.1,2011.0,0.001]
[1770448554189,1.24310079,2011.1,2009.6,0.05588493]
[1770448554513,1.24310079,2011.1,2009.9,1.29966833]
[1770448554718,1.24310079,2011.1,2009.3,0.05588493]
[1770448554879,1.24310079,2011.1,2008.3,13.59218574]
[1770448554880,0.05588493,2010.4,2008.9,0.62784456]
[1770448555214,13.33368445,2009.3,2008.5,1.24470529]
[1770448555379,0.2335703,2009.2,2007.5,4.98131906]
[1770448555578,0.2335703,2009.2,2007.3,0.01260687]
[1770448555579,13.33368445,2009.5,2007.8,4.98049594]
[1770448555781,13.33368445,2009.5,2008.3,1.24480646]
[1770448555782,0.05588493,2009.3,2008.3,1.24480646]
[1770448556013,1.30028512,2009.0,2007.4,8.45348306]
[1770448556206,1.30028512,2009.0,2007.4,4.98148306]
[1770448556406,13.33368445,2008.7,2007.4,1.24539204]
[1770448557013,13.33368445,2008.7,2007.4,1.19539204]
[1770448557216,13.33368445,2008.7,2007.4,1.25127697]
[1770448557418,13.33368445,2009.1,2007.7,0.05588493]
[1770448557590,13.33368445,2009.1,2007.8,0.03003503]
[1770448557911,13.33368445,2009.1,2007.5,0.6245452]
[1770448558119,14.57806036,2009.1,2007.7,0.05588493]
[1770448558421,6.32577151,2009.5,2007.7,0.05588493]
[1770448558422,14.57783693,2009.5,2008.2,0.05588493]
[1770448558584,6.4346413,2009.4,2007.7,0.05588493]
[1770448558921,13.33368445,2009.1,2007.6,1.24526798]
[1770448559094,13.33368445,2009.1,2007.5,1.86985636]
[1770448559296,6.55934181,2009.0,2007.5,1.86985636]
[1770448559498,6.32577151,2009.0,2007.5,1.86985636]
[1770448559694,6.32577151,2009.0,2007.6,0.69070613]
[1770448560117,6.32577151,2009.0,2007.7,1.30109088]
[1770448560118,7.57019085,2009.0,2007.7,1.30109088]
[1770448560413,4.97691338,2009.3,2007.7,1.30109088]
[1770448560584,4.97691338,2009.3,2007.7,1.24520595]
[1770448560784,1.24417593,2009.4,2007.7,1.30109088]
[1770448561103,0.28945523,2009.1,2007.8,0.69227759]
[1770448561408,13.33368445,2009.0,2007.8,0.69227759]
[1770448561609,13.33368445,2009.0,2007.7,1.24520595]
[1770448561787,1.24417593,2009.4,2007.7,1.24520595]
[1770448562113,0.05588493,2009.1,2007.6,1.24526798]
[1770448562313,19.89302626,2009.0,2007.5,1.24530684]
[1770448562514,6.32577151,2008.9,2007.5,1.24530684]
[1770448562718,1.98930263,2008.8,2007.5,2.36736225]
[1770448563014,1.98930263,2008.8,2007.3,0.01260687]
[1770448563015,13.33368445,2008.4,2007.3,1.25801355]
[1770448563225,13.33368445,2008.4,2007.3,1.25802027]
[1770448563395,21.64875859,2008.8,2007.3,0.01260687]
[1770448563595,21.64875859,2008.8,2007.5,1.24532599]
[1770448563901,1.24417593,2009.4,2007.5,1.24532599]
[1770448563902,30.0,2009.3,2007.5,1.24532599]
[1770448564093,13.33368445,2009.0,2007.5,1.24532599]
[1770448564295,0.2335703,2009.1,2007.5,1.24532599]
[1770448564518,0.0498513,2007.4,2007.3,1.2580573]
[1770448564720,1.24427632,2009.2,2007.8,0.05588493]
[1770448565038,0.01479297,2009.2,2007.4,1.24534825]
[1770448565203,0.05588493,2008.8,2007.3,0.01260687]
[1770448565516,0.05588493,2008.8,2007.4,1.24535049]
[1770448565517,6.49884941,2008.8,2007.4,1.24535049]
[1770448565717,6.34056448,2008.8,2007.4,1.24535049]
[1770448566050,6.34056448,2008.8,2007.5,0.62396973]